Cogmind - Beta 14 @@@ ROGUE MODE // 2024.09.13 @ 20:39:37 Player: star Result: Destroyed by WI-J2C(R) with Subdweller Shrapnel Launcher Performance ------------- Evolutions (0) 0 Regions Visited (2) 400 Robots Destroyed (16) 80 Value Destroyed (362) 362 Prototype IDs (2) 40 Alien Tech Used (0) 0 Bonus (0) 0 TOTAL SCORE: 882 Bonus ------- None Cogmind --------- Core Integrity 0/250 Matter 300/300 Energy 98/100 System Corruption 1% Temperature Cool (0) Movement Rolling (105) Location -10/Subcaves Parts ------- > --- POWER (1) -------- (None) > --- PROPULSION (2) --- Compact Wheel Subdweller Monowheel > --- UTILITY (2) ------ (None) > --- WEAPON (2) ------- Battle Rifle > --- INVENTORY (5) ---- Ion Engine Compact Wheel Tractor Beam Battle Cannon Grenade Launcher Peak State ------------ > --- POWER ------------ Ion Engine > --- PROPULSION ------- Compact Wheel Subdweller Monowheel > --- UTILITY ---------- Scrap Shield > --- WEAPON ----------- Heavy Riot Gun Barrage Gun > --- INVENTORY -------- Ion Engine Compact Wheel Tractor Beam Battle Rifle Grenade Launcher [Rating: 15] Favorites ----------- Power Ion Engine Engine Ion Engine Propulsion Compact Wheel Wheel Compact Wheel Utility Small Storage Unit Storage Small Storage Unit Protection Light Armor Plating Weapon Small Laser Energy Gun Small Laser Ballistic Gun Barrage Gun Launcher Grenade Launcher Build | -11 -10 -10 ------- Run | Yrd Mat Sub Slots Evolved . | . . . Power . | . . . Propulsion . | . . . Utility . | . . . Weapon . | . . . Parts Attached 18 | 6 1 11 Power 1 | 1 . . Engine 1 | 1 . . Core . | . . . Reactor . | . . . Propulsion 4 | 2 . 2 Treads . | . . . Leg . | . . . Wheel 4 | 2 . 2 Hover . | . . . Flight . | . . . Utility 4 | 1 1 2 Device . | . . . Storage 1 | 1 . . Processor . | . . . Hackware . | . . . Protection 3 | . 1 2 Artifact . | . . . Weapon 9 | 2 . 7 Energy Gun 5 | 2 . 3 Energy Cannon . | . . . Ballistic Gun 3 | . . 3 Ballistic Cannon . | . . . Launcher 1 | . . 1 Special Weapon . | . . . Impact Weapon . | . . . Slashing Weapon . | . . . Piercing Weapon . | . . . Special Melee Weapon . | . . . Unidentified Prototypes . | . . . Corrupted Parts 1 | . . 1 System Corruption 1 | . . 1 Parts Lost 4 | . . 4 Power 1 | . . 1 Propulsion . | . . . Utility 1 | . . 1 Weapon 2 | . . 2 Highest Loss Streak 2 | . . 2 To Critical Strikes . | . . . Average Slot Usage (%) 85 | . 99 77 Engine 13 | . 14 13 Wheel 28 | . 28 28 Storage 5 | . 14 . Protection 10 | . 13 8 Energy Gun 15 | . 28 7 Ballistic Gun 11 | . . 17 Peak Build Rating 15 | 6 7 15 Average Rating 9 | 4 6 11 On Entrance 4 | . 6 7 Naked Turns . | . . . Heaviest Build 30 | 12 15 30 Greatest Support 36 | 32 32 36 Greatest Overweight (x) 1 | . . 1 Average Overweight (x) . | . . . Largest Inventory Capacity 8 | 8 8 8 Average Capacity 6 | 7 8 5 Most Carried 6 | . 6 6 Average Carried 4 | . 4 4 Final Capacity 8 | 8 8 5 Final Carried 6 | . 6 5 Class Distribution -------------------- 100% | Mutant Dominant Class ---------------- Mutant | -10/Materials Mutant | -10/Subcaves Resources | -11 -10 -10 ----------- Run | Yrd Mat Sub Matter Collected 574 | 212 56 306 Remotely . | . . . Salvage Created 462 | . 81 381 Parts 34 | . 8 26 Haulers Intercepted 1 | . 1 . Recyclers Shooed . | . . . Parts Field Recycled . | . . . Retrieved Matter . | . . . Parts Self-Destructed 5 | . . 5 Prevented . | . . . Kills | -11 -10 -10 ------- Run | Yrd Mat Sub Combat Hostiles Destroyed 15 | . 3 12 Guns 15 | . 3 12 Classes Destroyed 5 | . 2 3 Hauler 1 | . 1 . Swarmer 8 | . 3 5 Artisan 1 | . . 1 Cobbler 1 | . . 1 Subdweller 7 | . . 7 Best Kill Streak 3 | . 2 3 Combat Bots Only 3 | . 2 3 Max Kills in Single Turn 2 | . 1 2 Gunslinging 1 | . . 1 Exploded . | . . . Melee . | . . . Uniques/NPCs Destroyed . | . . . Combat | -11 -10 -10 -------- Run | Yrd Mat Sub Hostile Shots Fired 66 | . 9 57 Missed 22 | . . 22 Damage Taken 1062 | . 64 998 Core 261 | . 12 249 Absorbed by Shields . | . . . Core Remaining (%) 100 | 100 . . Volleys Fired 56 | . 9 47 Largest 2 | . 2 2 Hottest 88 | . 80 88 Shots Fired 103 | . 18 85 Gun 100 | . 18 82 Cannon . | . . . Launcher 3 | . . 3 Special . | . . . Kinetic 49 | . . 49 Thermal 18 | . 18 . Explosive 3 | . . 3 Electromagnetic 33 | . . 33 Robot Hit Streak 13 | . 5 13 Robot Miss Streak 3 | . 3 2 Penetration Max . | . . . Secondary Targets 1 | . . 1 Max Gunslinging Chain 1 | . . 1 Shots Hit Robots 74 | . 9 65 Core Hits 34 | . 5 29 Critical Kills . | . . . Critical Parts Destroyed . | . . . Critical Strikes . | . . . Melee Attacks . | . . . Impact . | . . . Slashing . | . . . Piercing . | . . . Sneak Attacks . | . . . Combat Hostiles . | . . . Follow-up Attacks . | . . . Damage Inflicted 1219 | . 101 1118 Guns 1115 | . 101 1014 Cannons . | . . . Explosions 104 | . . 104 Melee . | . . . Ramming . | . . . Kinetic 610 | . . 610 Thermal 123 | . 101 22 Explosive 82 | . . 82 Electromagnetic 404 | . . 404 Impact . | . . . Slashing . | . . . Piercing . | . . . Highest Corruption 1 | . . 1 Average Corruption 1 | . . 1 Corruption Purged . | . . . Corruption Blocked . | . . . Effects 4 | . . 4 Message Errors 2 | . . 2 Matter Fused 1 | . . 1 Data Loss (minor) 1 | . . 1 Overload Shots . | . . . Overflow Damage . | . . . Projectiles . | . . . Explosions . | . . . Melee . | . . . Knockbacks . | . . . Impact . | . . . Kinetic . | . . . Secondary . | . . . Self-Inflicted Damage 25 | . . 25 Shots 1 | . . 1 Rammed . | . . . Targets Rammed . | . . . Kicked . | . . . Crushed . | . . . Highest Temperature 135 | . 135 16 Average Temperature 27 | . 55 6 Received Heat Transfer 84 | . . 84 Siege Activations . | . . . Robots Corrupted . | . . . Combat Hostiles . | . . . Parts Fried 1 | . . 1 Impact Corruptions . | . . . Robots Melted . | . . . Combat Hostiles . | . . . Parts Melted 1 | . 1 . Heat Transferred 275 | . 225 50 Parts Sabotaged . | . . . Parts Stolen . | . . . Parts Stripped . | . . . Power Chain Reactions 1 | . . 1 Alert | -11 -10 -10 ------- Run | Yrd Mat Sub Peak Influence 122 | . 122 . Initial . | . . . Average 61 | . 67 . Maximum Alert Level . | . . . Low Security (%) 100 | 100 100 . Level 1 . | . . . Level 2 . | . . . Level 3 . | . . . Level 4 . | . . . Level 5 . | . . . High Security . | . . . Max Security . | . . . Squads Dispatched . | . . . Investigation . | . . . Extermination . | . . . Reinforcement . | . . . Assault . | . . . Garrison . | . . . Intercept . | . . . Searches Triggered . | . . . Construction Impeded . | . . . Haulers Reinforced . | . . . Active Scanning Responses . | . . . Cargo Convoy Interrupts . | . . . Stealth | -11 -10 -10 --------- Run | Yrd Mat Sub Distress Signals 2 | . 2 . Communications Jammed . | . . . Distress Signals . | . . . Times Spotted 22 | . 6 16 Peak Tracking Total 5 | . 5 3 Tactical Retreats 2 | . 1 1 Traps | -11 -10 -10 ------- Run | Yrd Mat Sub Traps Triggered . | . . . Indirectly . | . . . Trap Hack Attempts . | . . . Triggered . | . . . Disarmed . | . . . Reprogrammed . | . . . Reused . | . . . Traps Extracted . | . . . Installed . | . . . Triggered . | . . . Machines | -11 -10 -10 ---------- Run | Yrd Mat Sub Machines Disabled . | . . . Max in Single Turn . | . . . Machines Repaired . | . . . Machines Dismantled . | . . . Machines Sabotaged . | . . . Overloaded Fab Kills . | . . . Hacking | -11 -10 -10 --------- Run | Yrd Mat Sub Machines Accessed 2 | . 1 1 Terminals 1 | . 1 . Fabricators . | . . . Repair Stations . | . . . Recycling Units . | . . . Scanalyzers . | . . . Garrison Access . | . . . Total Hacks 5 | . 1 4 Successful 5 | . 1 4 Failed . | . . . Catastrophic . | . . . Database Lockouts . | . . . Manual . | . . . Terminals 1 | . 1 . Fabricators . | . . . Repair Stations . | . . . Recycling Units . | . . . Scanalyzers . | . . . Garrison Access . | . . . Terminal Hacks 5 | . 1 4 Record 4 | . . 4 Prototype ID Bank 1 | . 1 . Fabricator Hacks . | . . . Repair Station Hacks . | . . . Recycling Unit Hacks . | . . . Scanalyzer . | . . . Garrison Access Hacks . | . . . Unauthorized Hacks . | . . . Terminals . | . . . Fabricators . | . . . Repair Stations . | . . . Recycling Units . | . . . Scanalyzers . | . . . Garrison Access . | . . . Data Cores Recovered . | . . . Used . | . . . Hacking Detections . | . . . Full Trace Events . | . . . Feedback Events . | . . . Feedback Blocked . | . . . Robot Schematics Acquired . | . . . Robots Built . | . . . Authchips . | . . . Time . | . . . Total Robot Build Rating . | . . . Part Schematics Acquired . | . . . Parts Built . | . . . Authchips . | . . . Time . | . . . Total Part Build Rating . | . . . Parts Repaired . | . . . Time . | . . . Parts Recycled . | . . . Recycled Matter . | . . . Retrieved Matter . | . . . Retrieved Components . | . . . Parts Scanalyzed . | . . . Part Schematics Acquired . | . . . Parts Damaged . | . . . Bothacking | -11 -10 -10 ------------ Run | Yrd Mat Sub Used RIF Installer . | . . . Robots Hacked . | . . . Non-combat . | . . . Combat . | . . . Robot Hacks Applied . | . . . Relay Couplers Released . | . . . Fabnet Peak Effective % . | . . . Robots Rewired . | . . . Allies Hacked . | . . . Hacks Repelled . | . . . Allies | -11 -10 -10 -------- Run | Yrd Mat Sub Total Allies . | . . . Largest Group . | . . . Highest-Rated Group . | . . . Highest-Rated Ally . | . . . Total Orders . | . . . Ally Attacks . | . . . Total Damage . | . . . Kills . | . . . Allies Corrupted . | . . . Allies Melted . | . . . Intel | -11 -10 -10 ------- Run | Yrd Mat Sub Robot Analysis Total . | . . . Derelict Logs Recovered 1 | . . 1 Drone Launches . | . . . Drone Recoveries . | . . . Exploration | -11 -10 -10 ------------- Run | Yrd Mat Sub Turns Passed 1525 | 54 537 934 Spaces Moved 856 | 45 105 706 Core 1 | 1 . . Treads . | . . . Legs . | . . . Wheels 855 | 44 105 706 Hover . | . . . Flight . | . . . Fastest Speed 50 | 50 100 100 Average Speed 101 | 98 100 101 Slowest Speed 115 | 100 100 115 Overloaded Moves . | . . . Propulsion Burnouts . | . . . Robots Hopped . | . . . Cave-ins Triggered . | . . . Exploration Rate (%) 21 | 3 20 42 Regions Visited 2 Branch Regions 1 Pre-discovered Areas . | . . . Known Exits Taken . | . . . Unknown Exits Taken 2 | 1 1 . Scrap Searched . | . . . Spaces Dug . | . . . Terrain Destroyed 14 | . . 14 Melee . | . . . Projectile . | . . . AOE 14 | . . 14 Terrain Rammed . | . . . Walls Destroyed . | . . . Machines Disabled . | . . . Actions | -11 -10 -10 --------- Run | Yrd Mat Sub Total 1410 | 51 518 841 Wait 465 | 1 398 66 Move 854 | 44 104 706 Hop . | . . . Pick Up 7 | . 6 1 Fast Attach 9 | 6 1 2 Attach 2 | . . 2 Detach 1 | . . 1 Swap 7 | . . 7 Drop 5 | . . 5 Fire 56 | . 9 47 Melee . | . . . Ram . | . . . Kick . | . . . Crush . | . . . Escape Stasis . | . . . Rewire . | . . . Trap . | . . . Miscellaneous 4 | . . 4 Route ------- -11/Scrapyard -10/Materials -10/Subcaves (discovered 3 exits: [*Mat x2] / Rec) History --------- Turn | Location | Event 24 | -11/Scrapyard | Discovered new exit (range 15) 55 | -11/Scrapyard | Entered Materials 315 | -10/Materials | Build established: Mutant 566 | -10/Materials | Discovered new exit (range 6) 592 | -10/Materials | Entered Subcaves 594 | -10/Subcaves | Shifting Twisted Machinery released Hvy. Riot Gun 595 | -10/Subcaves | Shifting Twisted Machinery released Battle Rifle 671 | -10/Subcaves | Learned Materials emergency access door positions 769 | -10/Subcaves | Discovered new exit (range 6) 801 | -10/Subcaves | Ambushed by angry Subdweller bent on revenge 841 | -10/Subcaves | Visited Clippyterm 844 | -10/Subcaves | Identified exit to Recycling 1116 | -10/Subcaves | Ambushed by Subdweller buried in earth 1144 | -10/Subcaves | Core integrity fell below 50% 1504 | -10/Subcaves | Discovered new exit (range 6) 1506 | -10/Subcaves | Ambushed by angry Subdweller bent on revenge 1526 | -10/Subcaves | Destroyed by WI-J2C(R) with Subdweller Shrapnel Launcher Last Messages --------------- 01434_ Subatomizers dissect the Sub. Optics. 01440_ Dropped Sub. Monowheel. 01441_ Acquired 31 matter. 01448_ Subatomizers dissect the Sub. Optics. 01472_ S-10 Pest destroyed. 01475_ Ion Engine destroyed. 01475_ S-10 Pest destroyed. 01479_ Acquired 9 matter. 01481_ Lgt. Ion Engine fries itself beyond repair. 01487_ System corrupted: Matter fused (-6). 01487_ Acquired 5 matter. 01493_ K2-JMR(u) cries out in pain. 01493_ K2-JMR(u) destroyed. 01496_ Acquired 8 matter. 01504_ EXIT=FOUND 01506_ XL-CYP(R) angrily emerges from the Twisted Machinery. 01506_ XL-CYP(R): "MADSUB!" 01511_ Barrage Gun destroyed. 01511_ XL-CYP(R) destroyed. 01513_ Acquired 2 matter. Map ----- +----------------------------------------------------+ | ?????????????????????????????????????????????????? | | ?????????????????????????????????????????????????? | | ?????????????????????????????????????????????????? | | ?????????????????????????????????????????????????? | | ?????????????????????????????????????????????????? | | ?????????????????????????????????????????????????? | | ?????????????????????????????????????????????????? | | ?????????????????????????????????????????????????? | | ?????????????????????????????????????????????????? | | ?????????????????????????????????????????????????? | | ?????????????????????????????????????????????????? | | ?????????????????????????????????????????????????? | | ?????????????????????????????????????????????????? | | ?????????????????????????????????????????????????? | | ?????????????????????????????????????????????????? | | ?????????????????????????????????????????????????? | | ?????????????????????????????????????????????????? | | ?????????????????????????????????????????????????? | | ?????????????????????????????????????????????????? | | ????????????????????????????###??????????????????? | | ??????????????????????????## ##?????????????????? | | ??????????????????????##### #?????????????????? | | ????????????????????### #?????????????????? | | ????????????????????# #####???"""????????? | | ????????????????????# ### ##??""""???????# | | ?????????????????????# @ ""##" "#???" ####### | | ????????????????????## " """"""""##??""""""" "" | | ????????????????????# """"""""#???#""""""" | | ???????????????????# ## """ "#???#"" " = % | | ?????????????????# ?## "" " ###?# ""|#### | | ??????????????? ???## #"#?## &##??? | | ????????????? R ?????# "] "#### ##???? | | ????????????? ??????#### ;& ""##"" #???? | | ???????????????# ??????????#; %& ###" ##???? | | ???????????????## ???????????##; && ## ""###?? | | ????????????????##????????????#;; =; =%|" " ##? | | ??????????????????????????????##; # = #? | | ?????????????????????????????#" "##" " ## | | ????????????????????????????# " ####### | | ???????????????????????????# < #?????## | | ???????????????????????????"" """ ###??????# | | ??????????????????????????##"######???????## | | ???????????????????????????##????????????##!=## | | ?????????????????????????????????????????# ]%&" | | ?????????????????????????????????????????# ! | | ?????????????????????????????????????????# | | ?????????????????????????????????????????# | | ????????????????????????????????????????# | | ????????????????????????????????????????## | | ?????????????????????????????????????????#### | +----------------------------------------------------+ Best States ------------- Heat Dissipation 25 Energy Generation 10 Energy Capacity 250 Matter Stores 300 Matter Capacity 300 Sight Range 16 Terrain Scan Density 10 Armor Coverage 800 Evasion (%) 40 Item Schematics ----------------- None Robot Schematics ------------------ None Fabricated ------------ Nothing Alien Tech Used ----------------- None Achievements -------------- None Challenges ------------ None Game ------ Seed ReactiveSeismicPropulsion Manual? 0 Play Time 00:11:28 Cumulative 81.9 hours Start 2024.09.13 @ 20:30:48 End 2024.09.13 @ 20:39:37 Sessions 1 Manual Loads 0 Difficulty Rogue Special Mode None Game No. 141 Rogue 141 Adventurer 0 Explorer 0 Win Type - Total 0 Types 0/0/0/0/0/0/0/0/0 Lore% 45 Gallery% 48 Achievement% 39 Wizard Run 0 Options --------- Layout 0 ASCII 0 Keyboard 1 Movement Numpad Keybinds 0 Fullscreen 2 Font 18/SmallcapsGlow Map View 76x50 Zoom Use 0% Tactical HUD 1 Map Filters NONE Filters NONE Steam 1 RUN: 6b075352-3a63-4a29-b8a2-c4156c762e5e